[Event "Swedish Chess Championship 2021: Sverigemastarklassen"]
[Site "Scandic Helsingborg Nord, Florettgatan 41, Helsingborg, Sweden"]
[Date "2021.07.04"]
[Round "2.5"]
[White "Lokander, Martin"]
[Black "Smith, Axel"]
[Result "0-1"]
[TimeControl "90 minutes for 40 moves + 30 minutes for the rest of the game + 30 seconds per move from move one."]
[WhiteTitle "IM"]
[BlackTitle "GM"]
[WhiteFideId "1709569"]
[BlackFideId "1707930"]
[WhiteElo "2437"]
[BlackElo "2453"]

1. d4 {[%clk 01:30:52]} {[%emt 00:00:07]} f5 {[%clk 01:30:45]} {[%emt
00:00:15]} 2. Bf4 {[%clk 01:21:12]} {[%emt 00:10:10]} Nf6 {[%clk 01:30:48]}
{[%emt 00:00:27]} 3. e3 {[%clk 01:21:37]} {[%emt 00:00:05]} d6 {[%clk
01:29:04]} {[%emt 00:02:13]} 4. Nf3 {[%clk 01:20:43]} {[%emt 00:01:25]} g6
{[%clk 01:22:43]} {[%emt 00:06:51]} 5. h3 {[%clk 01:20:57]} {[%emt 00:00:16]}
Bg7 {[%clk 01:22:56]} {[%emt 00:00:18]} 6. Bc4 {[%clk 01:15:20]} {[%emt
00:06:07]} e6 {[%clk 01:20:56]} {[%emt 00:02:29]} 7. Bh2 {[%clk 01:15:43]}
{[%emt 00:00:06]} Qe7 {[%clk 01:18:31]} {[%emt 00:02:56]} 8. O-O {[%clk
01:13:37]} {[%emt 00:02:36]} O-O {[%clk 01:16:53]} {[%emt 00:02:09]} 9. a4
{[%clk 01:12:16]} {[%emt 00:01:51]} a5 {[%clk 01:15:13]} {[%emt 00:02:10]} 10.
Nc3 {[%clk 01:09:15]} {[%emt 00:03:31]} Nc6 {[%clk 00:57:08]} {[%emt 00:18:34]}
11. Bb3 {[%clk 00:51:38]} {[%emt 00:18:08]} Kh8 {[%clk 00:53:09]} {[%emt
00:04:29]} 12. Qe2 {[%clk 00:50:26]} {[%emt 00:01:41]} e5 {[%clk 00:52:07]}
{[%emt 00:01:32]} 13. dxe5 {[%clk 00:50:36]} {[%emt 00:00:20]} dxe5 {[%clk
00:45:49]} {[%emt 00:06:47]} 14. Nb5 {[%clk 00:43:48]} {[%emt 00:07:18]} Nh5
{[%clk 00:35:09]} {[%emt 00:11:10]} 15. Rad1 {[%clk 00:37:19]} {[%emt
00:06:59]} f4 {[%clk 00:34:33]} {[%emt 00:01:06]} 16. Rfe1 {[%clk 00:34:06]}
{[%emt 00:03:43]} Rb8 {[%clk 00:23:25]} {[%emt 00:11:39]} 17. exf4 {[%clk
00:26:07]} {[%emt 00:08:28]} Nxf4 {[%clk 00:23:49]} {[%emt 00:00:06]} 18. Qe3
{[%clk 00:26:22]} {[%emt 00:00:15]} Qf6 {[%clk 00:15:23]} {[%emt 00:08:56]} 19.
Nxc7 {[%clk 00:15:44]} {[%emt 00:11:08]} Qf5 {[%clk 00:11:10]} {[%emt
00:04:44]} 20. c3 {[%clk 00:11:49]} {[%emt 00:04:25]} Nxg2 {[%clk 00:10:29]}
{[%emt 00:01:11]} 21. Kxg2 {[%clk 00:11:20]} {[%emt 00:00:59]} Qxh3+ {[%clk
00:10:53]} {[%emt 00:00:06]} 22. Kg1 {[%clk 00:11:19]} {[%emt 00:00:31]} Rxf3
{[%clk 00:09:50]} {[%emt 00:01:33]} 23. Qg5 {[%clk 00:10:16]} {[%emt 00:01:33]}
Bg4 {[%clk 00:08:08]} {[%emt 00:02:12]} 24. Rd2 {[%clk 00:01:04]} {[%emt
00:09:42]} Rf5 {[%clk 00:05:53]} {[%emt 00:02:45]} 25. Ne6 {[%clk 00:00:35]}
{[%emt 00:00:58]} Bf6 {[%clk 00:04:16]} {[%emt 00:02:08]} 26. Qe3 {[%clk
00:00:44]} {[%emt 00:00:21]} Bf3 {[%clk 00:04:01]} {[%emt 00:00:45]} 0-1

[Event "Swedish Chess Championship 2021: Sverigemastarklassen"]
[Site "Scandic Helsingborg Nord, Florettgatan 41, Helsingborg, Sweden"]
[Date "2021.07.07"]
[Round "5.1"]
[White "Seo, Jung Min"]
[Black "Blomqvist, Erik"]
[Result "1/2-1/2"]
[TimeControl "90 minutes for 40 moves + 30 minutes for the rest of the game + 30 seconds per move from move one."]
[WhiteTitle "IM"]
[BlackTitle "GM"]
[WhiteFideId "1734687"]
[BlackFideId "1709437"]
[WhiteElo "2453"]
[BlackElo "2535"]

1. d4 {[%clk 01:30:59]} {[%emt 02:47:55]} Nf6 {[%clk 01:30:53]} {[%emt
00:00:08]} 2. c4 {[%clk 01:31:21]} {[%emt 00:00:08]} e6 {[%clk 01:31:17]}
{[%emt 00:00:06]} 3. Nf3 {[%clk 01:31:48]} {[%emt 00:00:03]} b6 {[%clk
01:31:27]} {[%emt 00:00:20]} 4. g3 {[%clk 01:28:39]} {[%emt 00:03:40]} c6
{[%clk 01:31:20]} {[%emt 00:00:37]} 5. Bg2 {[%clk 01:27:32]} {[%emt 00:01:37]}
Be7 {[%clk 01:31:38]} {[%emt 00:00:11]} 6. b3 {[%clk 01:24:57]} {[%emt
00:03:05]} O-O {[%clk 01:31:47]} {[%emt 00:00:21]} 7. O-O {[%clk 01:25:15]}
{[%emt 00:00:12]} d5 {[%clk 01:32:03]} {[%emt 00:00:14]} 8. Bb2 {[%clk
01:25:03]} {[%emt 00:00:42]} Nbd7 {[%clk 01:30:38]} {[%emt 00:01:55]} 9. Nc3
{[%clk 01:24:17]} {[%emt 00:01:16]} Bb7 {[%clk 01:29:56]} {[%emt 00:01:12]} 10.
Re1 {[%clk 01:23:10]} {[%emt 00:01:37]} Rc8 {[%clk 01:26:14]} {[%emt 00:04:12]}
11. Rc1 {[%clk 01:21:11]} {[%emt 00:02:28]} Re8 {[%clk 01:21:42]} {[%emt
00:05:03]} 12. Qd3 {[%clk 01:14:00]} {[%emt 00:07:41]} h6 {[%clk 01:05:27]}
{[%emt 00:16:45]} 13. Qb1 {[%clk 01:03:20]} {[%emt 00:11:09]} Bb4 {[%clk
00:43:47]} {[%emt 00:22:09]} 14. Red1 {[%clk 00:49:18]} {[%emt 00:14:32]} Qe7
{[%clk 00:43:44]} {[%emt 00:00:34]} 15. Nd2 {[%clk 00:47:07]} {[%emt 00:02:41]}
c5 {[%clk 00:38:48]} {[%emt 00:05:26]} 16. dxc5 {[%clk 00:40:34]} {[%emt
00:07:03]} bxc5 {[%clk 00:36:52]} {[%emt 00:02:26]} 17. Nf1 {[%clk 00:38:02]}
{[%emt 00:03:01]} Bxc3 {[%clk 00:29:27]} {[%emt 00:07:56]} 18. Bxc3 {[%clk
00:38:16]} {[%emt 00:00:16]} Bc6 {[%clk 00:24:14]} {[%emt 00:05:44]} 19. cxd5
{[%clk 00:36:47]} {[%emt 00:01:59]} Nxd5 {[%clk 00:23:34]} {[%emt 00:01:10]} 20.
Bb2 {[%clk 00:34:55]} {[%emt 00:02:22]} a5 {[%clk 00:21:52]} {[%emt 00:02:12]}
21. Qa1 {[%clk 00:32:24]} {[%emt 00:03:00]} f6 {[%clk 00:22:14]} {[%emt
00:00:09]} 22. a4 {[%clk 00:31:59]} {[%emt 00:00:55]} Rb8 {[%clk 00:19:35]}
{[%emt 00:03:10]} 23. Nd2 {[%clk 00:31:36]} {[%emt 00:00:52]} Nb4 {[%clk
00:19:53]} {[%emt 00:00:13]} 24. Nc4 {[%clk 00:29:08]} {[%emt 00:02:58]} Bxg2
{[%clk 00:18:53]} {[%emt 00:01:30]} 25. Kxg2 {[%clk 00:28:54]} {[%emt
00:00:44]} Nc6 {[%clk 00:18:50]} {[%emt 00:00:32]} 26. Qa3 {[%clk 00:27:16]}
{[%emt 00:02:08]} e5 {[%clk 00:17:36]} {[%emt 00:01:45]} 27. Bc3 {[%clk
00:26:08]} {[%emt 00:01:37]} Nf8 {[%clk 00:16:22]} {[%emt 00:01:44]} 28. Nd6
{[%clk 00:24:47]} {[%emt 00:01:50]} Red8 {[%clk 00:15:34]} {[%emt 00:01:19]} 29.
Qxc5 {[%clk 00:24:35]} {[%emt 00:00:42]} Nd4 {[%clk 00:15:53]} {[%emt
00:00:11]} 30. Bxd4 {[%clk 00:21:12]} {[%emt 00:03:53]} Qxd6 {[%clk 00:13:00]}
{[%emt 00:03:22]} 31. Qxd6 {[%clk 00:18:11]} {[%emt 00:03:32]} Rxd6 {[%clk
00:13:29]} {[%emt 00:00:01]} 32. Be3 {[%clk 00:17:19]} {[%emt 00:01:21]} Rxd1
{[%clk 00:13:56]} {[%emt 00:00:04]} 33. Rxd1 {[%clk 00:17:47]} {[%emt
00:00:02]} Rxb3 {[%clk 00:14:19]} {[%emt 00:00:07]} 34. Rd5 {[%clk 00:18:13]}
{[%emt 00:00:03]} Ne6 {[%clk 00:14:39]} {[%emt 00:00:10]} 35. Rxa5 {[%clk
00:17:49]} {[%emt 00:00:55]} Ra3 {[%clk 00:14:58]} {[%emt 00:00:11]} 36. g4
{[%clk 00:16:57]} {[%emt 00:01:21]} Nd4 {[%clk 00:14:45]} {[%emt 00:00:43]} 37.
Bxd4 {[%clk 00:17:04]} {[%emt 00:00:23]} exd4 {[%clk 00:15:13]} {[%emt
00:00:02]} 38. h4 {[%clk 00:13:58]} {[%emt 00:03:36]} h5 {[%clk 00:13:00]}
{[%emt 00:02:43]} 39. Rxh5 {[%clk 00:01:30]} {[%emt 00:12:58]} Rxa4 {[%clk
00:13:23]} {[%emt 00:00:07]} 40. f3 {[%clk 00:00:54]} {[%emt 00:01:06]} d3
{[%clk 00:11:18]} {[%emt 00:02:34]} 41. exd3 {[%clk 00:01:07]} {[%emt
00:00:18]} Rd4 {[%clk 00:11:42]} {[%emt 00:00:06]} 42. Rc5 {[%clk 00:27:05]}
{[%emt 00:04:32]} Rxd3 {[%clk 00:41:56]} {[%emt 00:00:17]} 43. Kg3 {[%clk
00:27:20]} {[%emt 00:00:15]} Kh7 {[%clk 00:40:16]} {[%emt 00:02:09]} 44. Rc7
{[%clk 00:27:33]} {[%emt 00:00:17]} Kh6 {[%clk 00:38:34]} {[%emt 00:02:11]} 45.
Re7 {[%clk 00:27:41]} {[%emt 00:00:22]} Ra3 {[%clk 00:38:36]} {[%emt 00:00:28]}
46. Re6 {[%clk 00:27:34]} {[%emt 00:00:38]} Ra4 {[%clk 00:36:39]} {[%emt
00:02:27]} 47. g5+ {[%clk 00:27:14]} {[%emt 00:00:50]} Kg6 {[%clk 00:36:27]}
{[%emt 00:00:42]} 48. Rc6 {[%clk 00:26:53]} {[%emt 00:00:52]} Ra1 {[%clk
00:35:33]} {[%emt 00:01:24]} 49. Kg4 {[%clk 00:26:29]} {[%emt 00:00:54]} Rg1+
{[%clk 00:35:49]} {[%emt 00:00:13]} 50. Kh3 {[%clk 00:26:35]} {[%emt 00:00:22]}
Rh1+ {[%clk 00:34:48]} {[%emt 00:01:33]} 51. Kg3 {[%clk 00:26:59]} {[%emt
00:00:06]} Rg1+ {[%clk 00:35:01]} {[%emt 00:00:18]} 52. Kh2 {[%clk 00:27:25]}
{[%emt 00:00:03]} Ra1 {[%clk 00:35:10]} {[%emt 00:00:21]} 53. Kg2 {[%clk
00:27:41]} {[%emt 00:00:14]} Ra4 {[%clk 00:32:33]} {[%emt 00:03:08]} 54. Kg3
{[%clk 00:28:06]} {[%emt 00:00:05]} Ra1 {[%clk 00:32:59]} {[%emt 00:00:05]} 55.
Rc5 {[%clk 00:28:18]} {[%emt 00:00:16]} fxg5 {[%clk 00:31:29]} {[%emt
00:02:01]} 56. hxg5 {[%clk 00:28:36]} {[%emt 00:00:12]} Rg1+ {[%clk 00:29:27]}
{[%emt 00:02:31]} 57. Kf4 {[%clk 00:28:54]} {[%emt 00:00:11]} Kh5 {[%clk
00:29:28]} {[%emt 00:00:30]} 58. Re5 {[%clk 00:28:39]} {[%emt 00:00:46]} Rg2
{[%clk 00:29:45]} {[%emt 00:00:13]} 59. Rf5 {[%clk 00:28:20]} {[%emt 00:00:47]}
Rg1 {[%clk 00:30:05]} {[%emt 00:00:11]} 60. Ra5 {[%clk 00:28:38]} {[%emt
00:00:13]} Rg2 {[%clk 00:30:28]} {[%emt 00:00:07]} 61. Rb5 {[%clk 00:28:57]}
{[%emt 00:00:11]} Rg1 {[%clk 00:30:27]} {[%emt 00:00:31]} 62. Rd5 {[%clk
00:29:01]} {[%emt 00:00:25]} Rg2 {[%clk 00:30:52]} {[%emt 00:00:05]} 63. Rc5
{[%clk 00:29:27]} {[%emt 00:00:04]} Rg1 {[%clk 00:31:19]} {[%emt 00:00:04]} 64.
Rd5 {[%clk 00:29:44]} {[%emt 00:00:12]} Rg2 {[%clk 00:31:43]} {[%emt 00:00:06]}
65. Ra5 {[%clk 00:30:04]} {[%emt 00:00:11]} Rg1 {[%clk 00:32:09]} {[%emt
00:00:04]} 66. Rb5 {[%clk 00:30:17]} {[%emt 00:00:17]} Rg2 {[%clk 00:32:34]}
{[%emt 00:00:04]} 67. Rf5 {[%clk 00:30:39]} {[%emt 00:00:08]} Rg1 {[%clk
00:33:01]} {[%emt 00:00:04]} 68. Re5 {[%clk 00:30:59]} {[%emt 00:00:10]} Rg2
{[%clk 00:33:26]} {[%emt 00:00:05]} 69. Ra5 {[%clk 00:31:23]} {[%emt 00:00:06]}
Rg1 {[%clk 00:33:53]} {[%emt 00:00:04]} 70. Rb5 {[%clk 00:31:46]} {[%emt
00:00:07]} Rg2 {[%clk 00:34:19]} {[%emt 00:00:04]} 71. Rc5 {[%clk 00:32:11]}
{[%emt 00:00:06]} Rg1 {[%clk 00:34:44]} {[%emt 00:00:04]} 72. Rd5 {[%clk
00:32:34]} {[%emt 00:00:07]} Rg2 {[%clk 00:35:11]} {[%emt 00:00:04]} 73. Rb5
{[%clk 00:32:57]} {[%emt 00:00:07]} Rg1 {[%clk 00:35:36]} {[%emt 00:00:05]} 74.
Ra5 {[%clk 00:33:11]} {[%emt 00:00:16]} Rg2 {[%clk 00:36:01]} {[%emt 00:00:04]}
75. Rf5 {[%clk 00:33:35]} {[%emt 00:00:06]} Rg1 {[%clk 00:36:27]} {[%emt
00:00:05]} 76. Rc5 {[%clk 00:34:01]} {[%emt 00:00:04]} Rg2 {[%clk 00:36:51]}
{[%emt 00:00:06]} 77. Rd5 {[%clk 00:34:22]} {[%emt 00:00:10]} Rg1 {[%clk
00:37:15]} {[%emt 00:00:06]} 78. Rb5 {[%clk 00:34:37]} {[%emt 00:00:15]} Rg2
{[%clk 00:37:40]} {[%emt 00:00:05]} 79. Re5 {[%clk 00:34:51]} {[%emt 00:00:15]}
Rg1 {[%clk 00:38:05]} {[%emt 00:00:05]} 80. Ke4 {[%clk 00:35:10]} {[%emt
00:00:12]} Re1+ {[%clk 00:38:08]} {[%emt 00:00:26]} 81. Kf4 {[%clk 00:35:34]}
{[%emt 00:00:07]} Rxe5 {[%clk 00:38:23]} {[%emt 00:00:15]} 82. Kxe5 {[%clk
00:36:03]} {[%emt 00:00:01]} Kxg5 {[%clk 00:38:43]} {[%emt 00:00:10]} 83. f4
{[%clk 00:36:31]} {[%emt 00:00:02]} Kg4 {[%clk 00:38:57]} {[%emt 00:00:16]} 84.
f5 {[%clk 00:37:00]} {[%emt 00:00:02]} Kg5 {[%clk 00:39:19]} {[%emt 00:00:07]}
85. Ke6 {[%clk 00:37:28]} {[%emt 00:00:02]} Kf4 {[%clk 00:39:43]} {[%emt
00:00:06]} 86. f6 {[%clk 00:37:53]} {[%emt 00:00:05]} gxf6 {[%clk 00:40:10]}
{[%emt 00:00:04]} 87. Kxf6 {[%clk 00:38:21]} {[%emt 00:00:02]} Ke5+ {[%emt
00:00:08]} 1/2-1/2

[Event "Swedish Chess Championship 2021: Sverigemastarklassen"]
[Site "Scandic Helsingborg Nord, Florettgatan 41, Helsingborg, Sweden"]
[Date "2021.07.07"]
[Round "5.2"]
[White "Hillarp Persson, Tiger"]
[Black "Lokander, Martin"]
[Result "1-0"]
[TimeControl "90 minutes for 40 moves + 30 minutes for the rest of the game + 30 seconds per move from move one."]
[WhiteTitle "GM"]
[BlackTitle "IM"]
[WhiteFideId "1700812"]
[BlackFideId "1709569"]
[WhiteElo "2542"]
[BlackElo "2437"]

1. c4 {[%clk 01:30:54]} {[%emt 00:00:04]} c6 {[%clk 01:29:02]} {[%emt
00:01:58]} 2. Nf3 {[%clk 01:31:09]} {[%emt 00:00:15]} d5 {[%clk 01:29:25]}
{[%emt 00:00:07]} 3. e3 {[%clk 01:31:20]} {[%emt 00:00:19]} g6 {[%clk
01:25:28]} {[%emt 00:04:28]} 4. d4 {[%clk 01:29:06]} {[%emt 00:02:44]} Bg7
{[%clk 01:25:36]} {[%emt 00:00:22]} 5. Nc3 {[%clk 01:29:13]} {[%emt 00:00:23]}
Nf6 {[%clk 01:25:33]} {[%emt 00:00:33]} 6. Be2 {[%clk 01:29:34]} {[%emt
00:00:09]} O-O {[%clk 01:25:38]} {[%emt 00:00:26]} 7. O-O {[%clk 01:29:56]}
{[%emt 00:00:07]} dxc4 {[%clk 01:18:33]} {[%emt 00:07:36]} 8. Bxc4 {[%clk
01:29:38]} {[%emt 00:00:47]} Bg4 {[%clk 01:18:52]} {[%emt 00:00:11]} 9. Qb3
{[%clk 01:18:02]} {[%emt 00:12:07]} Bxf3 {[%clk 01:19:16]} {[%emt 00:00:07]} 10.
gxf3 {[%clk 01:18:27]} {[%emt 00:00:04]} Qc8 {[%clk 01:10:02]} {[%emt
00:09:44]} 11. Rd1 {[%clk 01:18:28]} {[%emt 00:00:29]} Nbd7 {[%clk 01:07:17]}
{[%emt 00:03:15]} 12. f4 {[%clk 01:16:48]} {[%emt 00:02:09]} Ne8 {[%clk
01:01:31]} {[%emt 00:06:17]} 13. Bf1 {[%clk 01:14:10]} {[%emt 00:03:08]} Ndf6
{[%clk 00:57:44]} {[%emt 00:04:17]} 14. Bg2 {[%clk 01:12:49]} {[%emt 00:01:50]}
Nd6 {[%clk 00:57:25]} {[%emt 00:00:50]} 15. e4 {[%clk 00:59:57]} {[%emt
00:13:21]} Nh5 {[%clk 00:57:33]} {[%emt 00:00:24]} 16. h3 {[%clk 00:47:40]}
{[%emt 00:12:45]} Kh8 {[%clk 00:57:35]} {[%emt 00:00:29]} 17. Ne2 {[%clk
00:38:20]} {[%emt 00:09:49]} Qe6 {[%clk 00:39:58]} {[%emt 00:18:08]} 18. Rd3
{[%clk 00:29:03]} {[%emt 00:09:46]} Rad8 {[%clk 00:34:40]} {[%emt 00:05:49]} 19.
Be3 {[%clk 00:29:15]} {[%emt 00:00:16]} Qxb3 {[%clk 00:26:45]} {[%emt
00:08:26]} 20. Rxb3 {[%clk 00:29:36]} {[%emt 00:00:09]} Rd7 {[%clk 00:26:52]}
{[%emt 00:00:24]} 21. Rc1 {[%clk 00:27:21]} {[%emt 00:02:45]} e6 {[%clk
00:22:19]} {[%emt 00:05:04]} 22. a4 {[%clk 00:26:53]} {[%emt 00:00:58]} f5
{[%clk 00:15:44]} {[%emt 00:07:05]} 23. e5 {[%clk 00:27:11]} {[%emt 00:00:11]}
Nc8 {[%clk 00:15:49]} {[%emt 00:00:25]} 24. Bf3 {[%clk 00:23:01]} {[%emt
00:04:39]} Bh6 {[%clk 00:15:21]} {[%emt 00:00:59]} 25. Bxh5 {[%clk 00:23:02]}
{[%emt 00:00:28]} gxh5 {[%clk 00:15:48]} {[%emt 00:00:04]} 26. d5 {[%clk
00:11:33]} {[%emt 00:11:59]} exd5 {[%clk 00:16:14]} {[%emt 00:00:03]} 27. Bd4
{[%clk 00:09:45]} {[%emt 00:02:17]} Re7 {[%clk 00:10:58]} {[%emt 00:05:47]} 28.
Kh1 {[%clk 00:08:26]} {[%emt 00:01:48]} Rg8 {[%clk 00:04:31]} {[%emt 00:06:57]}
29. Ng3 {[%clk 00:06:25]} {[%emt 00:02:30]} Re6 {[%clk 00:02:40]} {[%emt
00:02:22]} 30. Rxb7 {[%clk 00:05:52]} {[%emt 00:01:04]} Bxf4 {[%clk 00:00:38]}
{[%emt 00:02:32]} 31. Rxc6 {[%clk 00:05:53]} {[%emt 00:00:30]} Rxc6 {[%clk
00:00:35]} {[%emt 00:00:32]} 32. e6+ {[%clk 00:06:14]} {[%emt 00:00:08]} Rg7
{[%clk 00:01:04]} {[%emt 00:00:01]} 33. Rxg7 {[%clk 00:05:35]} {[%emt
00:01:09]} 1-0